bitfinex/quotes_ETHUSD_20220213
["timestamp","ask_amount","ask_price","bid_price","bid_amount"]
[1644726491609,3.4834497,2925.0,2924.8,0.00980166]
[1644726492713,3.4834497,2925.0,2924.1,0.0032827]
[1644726492913,3.4834497,2925.0,2924.8,0.00980166]
[1644726493114,0.01346589,2925.0,2924.8,0.00980166]
[1644726493714,3.15939132,2925.0,2924.8,0.00980166]
[1644726493913,3.15939132,2925.0,2924.3,0.0032827]
[1644726494213,3.15939132,2925.0,2924.8,0.00980166]
[1644726495064,3.15939132,2925.0,2924.3,0.0032827]
[1644726495260,3.15939132,2925.0,2924.8,0.00980165]
[1644726496258,3.15939132,2925.0,2924.2,0.0032827]
[1644726496458,3.15939132,2925.0,2924.8,0.00980165]
[1644726497464,3.15939132,2925.0,2924.2,0.0032827]
[1644726497661,3.15939132,2925.0,2924.8,0.00980165]
[1644726498518,5.1708,2924.9,2924.8,0.00980165]
[1644726498717,5.1708,2924.9,2924.2,0.0032827]
[1644726498718,9.72671229,2924.9,2924.2,0.0032827]
[1644726498918,4.99857399,2924.7,2924.3,0.0392125]
[1644726499115,4.7281383,2924.9,2924.3,0.0392125]
[1644726499116,3.73,2924.6,2924.3,0.0392125]
[1644726499319,0.6648,2924.9,2924.3,0.0392125]
[1644726499320,3.85102489,2924.8,2924.3,0.0392125]
[1644726499517,0.89049856,2924.5,2924.3,0.0392125]
[1644726499715,3.42605228,2924.4,2924.3,0.0392125]
[1644726499916,3.42605228,2924.4,2924.2,0.0032827]
[1644726500120,3.42605228,2924.4,2924.3,0.0098024]
[1644726500717,3.21620102,2924.4,2924.3,0.0098024]
[1644726500917,0.89049856,2924.5,2924.3,0.0098024]
[1644726501117,0.89049856,2924.5,2924.1,0.0032827]
[1644726501318,3.20541301,2924.4,2924.2,0.00980247]
[1644726502159,0.89049856,2924.5,2924.1,0.0032827]
[1644726502361,3.21279477,2924.4,2924.1,0.0032827]
[1644726502560,0.89049856,2924.5,2924.2,0.00980261]
[1644726502961,3.26932328,2924.4,2924.2,0.00980261]
[1644726503364,3.26932328,2924.4,2924.1,0.0032827]
[1644726503863,3.9032514,2924.8,2924.2,0.00980261]
[1644726504665,3.9032514,2924.8,2924.1,0.0032827]
[1644726504864,3.9032514,2924.8,2924.4,0.00980231]
[1644726505064,0.9589977,2924.7,2924.4,0.00980231]
[1644726505270,3.35087504,2924.6,2924.4,0.00980231]
[1644726505910,3.35087504,2924.6,2924.1,0.0032827]
[1644726506108,3.35087504,2924.6,2924.4,0.00980236]
[1644726507112,3.35087504,2924.6,2924.1,0.0032827]
[1644726507311,3.35087504,2924.6,2924.4,0.00980236]
[1644726508313,3.35087504,2924.6,2924.1,0.0032827]
[1644726508516,3.35087504,2924.6,2924.4,0.00980236]
[1644726509567,3.35087504,2924.6,2924.1,0.0032827]
[1644726509762,3.35087504,2924.6,2924.4,0.00980234]
[1644726510567,0.01516494,2924.5,2924.1,0.0032827]
[1644726511081,0.01516494,2924.5,2924.4,0.00980234]
[1644726511863,0.01516494,2924.5,2924.1,0.0032827]
[1644726512064,0.01516494,2924.5,2924.3,0.00980241]
[1644726513072,0.01516494,2924.5,2923.8,0.0032827]
[1644726513312,0.01516494,2924.5,2924.3,0.00980249]
[1644726513916,0.01516494,2924.5,2924.3,0.80790249]
[1644726514114,0.01516494,2924.5,2924.4,0.494]
[1644726514316,0.01516494,2924.5,2924.4,3.58051551]
[1644726514515,0.01516494,2924.5,2924.4,0.494]
[1644726514716,0.01516494,2924.5,2924.4,0.794]
[1644726515013,0.01516494,2924.5,2924.4,0.494]
[1644726515213,0.01516494,2924.5,2924.4,0.794]
[1644726515414,0.01516494,2924.5,2924.4,1.794]
[1644726516215,0.01516494,2924.5,2924.4,0.794]
[1644726516414,0.01516494,2924.5,2924.4,0.9649]
[1644726518665,0.01394002,2924.5,2924.4,0.9649]
[1644726520666,0.01394002,2924.5,2924.4,0.794]
[1644726521112,0.01394002,2924.5,2924.4,0.494]
[1644726522114,0.01394002,2924.5,2924.4,0.794]
[1644726523524,0.01394002,2924.5,2924.4,3.56757936]
[1644726523720,0.01394002,2924.5,2924.4,4.56757936]
[1644726523917,0.01394002,2924.5,2924.4,1.494]
[1644726524318,0.01394002,2924.5,2924.4,1.794]
[1644726524764,0.01394002,2924.5,2924.4,4.90224542]
[1644726525765,0.01394002,2924.5,2924.4,4.60224542]
[1644726525965,0.01394002,2924.5,2924.4,4.90224542]
[1644726526168,0.01643762,2924.6,2924.4,4.60224542]
[1644726526367,0.01643762,2924.6,2924.4,4.90224542]
[1644726526766,0.01643762,2924.6,2924.4,4.60224542]
[1644726526965,0.01643762,2924.6,2924.4,4.90224542]
[1644726527767,0.01643762,2924.6,2924.4,4.91204774]
[1644726528167,0.01643762,2924.6,2924.4,4.61204774]
[1644726528617,0.01643762,2924.6,2924.4,4.60224542]
[1644726528819,0.01643762,2924.6,2924.4,4.61204774]
[1644726529818,0.01643762,2924.6,2924.4,4.90224542]
[1644726530018,0.01643762,2924.6,2924.5,3.19770795]
[1644726530224,4.3818,2925.7,2924.5,4.36850795]
[1644726530423,1.45403779,2925.6,2924.6,1.00328969]
[1644726530621,1.45403779,2925.6,2924.7,3.89591745]
[1644726530818,1.45403779,2925.6,2924.8,1.0]
[1644726531018,1.45403779,2925.6,2924.8,1.494]
[1644726531219,2.52673996,2925.6,2925.0,0.00980135]
[1644726531424,1.07270217,2925.6,2925.0,0.00980135]
[1644726531619,1.45408266,2925.5,2925.0,0.00980135]
[1644726532261,1.45408266,2925.5,2924.7,0.00328969]
[1644726532463,0.1708,2925.4,2925.1,0.0098012]
[1644726532661,1.45408266,2925.3,2925.1,0.0098012]
[1644726532862,1.24350217,2925.6,2925.1,0.0098012]
[1644726533063,1.45421087,2925.5,2925.1,0.0098012]
[1644726533266,0.1708,2925.4,2925.1,0.0098012]
[1644726533465,1.45421087,2925.3,2924.5,0.00328969]
[1644726533667,0.96287068,2924.9,2924.7,0.0392104]
[1644726534669,0.96287068,2924.9,2924.5,0.00328969]
[1644726535070,0.96287068,2924.9,2924.7,0.00980181]
[1644726535268,1.3455,2925.2,2924.7,0.00980181]
[1644726535471,1.45432389,2925.1,2924.7,0.00980181]
[1644726535668,0.1708,2925.0,2924.7,0.00980181]
[1644726535912,0.1708,2925.0,2924.5,0.00328969]
[1644726536114,0.1708,2925.1,2924.8,0.00980166]
[1644726536314,1.45432029,2925.0,2924.8,0.00980166]
[1644726537014,1.45432029,2925.0,2924.1,0.00328969]
[1644726537413,1.45432029,2925.0,2924.8,0.00980166]
[1644726538315,1.45432029,2925.0,2924.1,0.00328969]
[1644726538522,1.45432029,2925.0,2924.8,0.00980171]
[1644726538720,1.62512029,2925.0,2924.8,0.00980171]
[1644726538919,1.45432029,2924.9,2924.8,0.00980171]
[1644726539324,0.1708,2925.0,2924.8,0.00980171]
[1644726539572,0.1708,2925.0,2924.1,0.00328969]
[1644726539761,0.1708,2925.0,2924.7,0.00980178]
[1644726540359,0.22430098,2925.0,2924.7,0.00980178]
[1644726540768,0.87392006,2924.6,2924.1,0.00328969]
[1644726540967,1.4544074,2924.9,2924.3,0.01741102]
[1644726540968,0.1708,2924.9,2924.3,0.01741102]
[1644726541163,1.45442599,2924.8,2924.3,0.01741102]
[1644726541761,1.45442599,2924.8,2923.9,0.00328969]
[1644726541966,4.51730499,2924.8,2923.9,0.00328969]
[1644726542161,1.16392118,2924.6,2924.4,0.00980851]
[1644726543162,1.16392118,2924.6,2923.9,0.00328969]
[1644726543426,1.16392118,2924.6,2924.4,0.00980859]
[1644726544224,1.16392118,2924.6,2923.9,0.00328969]
[1644726544630,1.1364,2924.8,2924.4,0.00980859]
[1644726545427,1.1364,2924.8,2923.9,0.00328969]
[1644726545627,1.18970851,2924.8,2924.5,0.00990576]
[1644726546627,1.18970851,2924.8,2923.9,0.00328969]
[1644726546827,1.18970851,2924.8,2924.5,0.00990569]
[1644726547862,1.18970851,2924.8,2923.9,0.00328969]
[1644726548063,1.18970851,2924.8,2924.5,0.00990569]
[1644726549068,1.18970851,2924.8,2923.9,0.00328969]
[1644726549368,1.18970851,2924.8,2924.5,0.00980166]
[1644726550368,1.18970851,2924.8,2923.9,0.00328969]
[1644726550569,1.18970851,2924.8,2924.5,0.00980166]
[1644726551426,1.18970851,2924.8,2923.9,0.00328969]
[1644726551628,4.41259136,2924.7,2923.9,0.00328969]
[1644726551832,1.45445472,2924.6,2924.5,0.00980166]
[1644726552025,3.75,2924.5,2924.1,0.03921251]
[1644726552229,6.92673666,2924.5,2924.1,0.03921251]
[1644726552430,1.4545861,2924.4,2924.1,0.03921251]
[1644726552623,1.4545861,2924.4,2923.9,0.00328969]
[1644726552824,1.12803708,2924.1,2923.9,0.00328969]
[1644726553025,1.12803708,2924.1,2923.2,1.2269]
[1644726553026,1.12803708,2924.1,2923.3,0.00328969]
[1644726553429,1.1933,2924.4,2923.3,0.00328969]
[1644726554432,1.08638866,2924.2,2923.3,0.00328969]
[1644726556563,1.08638866,2924.2,2923.6,0.0104131]
[1644726557466,1.08638866,2924.2,2923.3,0.00328969]
[1644726557769,0.171,2924.3,2923.8,0.01041287]
[1644726557973,0.171,2924.3,2923.9,0.494]
[1644726558168,0.171,2924.3,2923.9,0.66808969]
[1644726558416,0.05311601,2924.6,2923.9,0.96808969]
[1644726558616,0.05311601,2924.6,2923.9,1.26808969]
[1644726558916,0.05311601,2924.6,2924.0,0.01041258]
[1644726559116,0.05311601,2924.6,2924.1,0.6648]
[1644726559317,0.05311601,2924.6,2924.1,0.66808969]
[1644726559519,0.05311601,2924.6,2924.1,0.96808969]
[1644726559720,0.05311601,2924.6,2924.1,1.96808969]
[1644726560122,0.05311601,2924.6,2924.2,0.01041221]
[1644726560325,0.90341805,2925.1,2924.3,0.494]
[1644726560519,0.90341805,2925.1,2924.4,0.00328969]
[1644726561321,0.90341805,2925.1,2924.4,0.01370219]
[1644726563564,0.90341805,2925.1,2924.4,0.00328969]
[1644726563764,0.90341805,2925.1,2924.4,0.01370219]
[1644726564765,0.90341805,2925.1,2924.4,0.00328969]
[1644726564968,0.90341805,2925.1,2924.4,0.01370219]
[1644726565564,0.95701525,2925.1,2924.4,0.01370219]
[1644726565816,0.95701525,2925.1,2924.4,0.00328969]
[1644726566017,0.95701525,2925.1,2924.4,0.01370219]
[1644726566921,1.4542914,2925.0,2924.4,0.01370219]
[1644726567121,1.4542914,2925.0,2924.4,0.00328969]
[1644726567323,0.95701525,2925.1,2924.4,0.01370219]
[1644726567621,1.45429299,2925.0,2924.4,0.01370219]
[1644726568223,1.45429299,2925.0,2924.4,0.00328969]
[1644726568522,1.45429299,2925.0,2924.4,0.0104124]
[1644726569425,1.45429299,2925.0,2924.3,0.494]
[1644726569662,1.45429299,2925.0,2924.4,0.0104124]
[1644726570670,1.45429299,2925.0,2924.3,0.49728969]
[1644726570864,1.45429299,2925.0,2924.4,0.0104124]
[1644726571964,1.45429299,2925.0,2924.3,0.49728969]
[1644726572164,1.45429299,2925.0,2924.4,0.0104124]
[1644726573174,1.45429299,2925.0,2924.3,0.49728969]
[1644726573416,1.45429299,2925.0,2924.4,0.0104124]
[1644726573815,4.66148913,2925.0,2924.4,0.0104124]
[1644726574014,0.95701525,2925.1,2924.4,0.0104124]
[1644726574015,1.45429299,2924.9,2924.4,0.0104124]
[1644726574214,1.62410497,2925.0,2924.3,0.00328969]
[1644726574414,0.1708,2925.0,2924.0,0.00328969]
[1644726574616,0.1708,2925.0,2924.4,0.0104124]
[1644726575413,0.1708,2925.0,2924.0,0.00328969]
[1644726575614,3.35534625,2925.0,2924.0,0.00328969]
[1644726575820,3.35534625,2925.0,2924.4,0.0104124]
[1644726576014,0.1708,2925.0,2924.4,0.0104124]
[1644726576615,0.1708,2925.0,2924.0,0.00328969]
[1644726577062,0.1708,2925.0,2924.4,0.0104124]
[1644726577861,0.1708,2925.0,2924.0,0.00328969]
[1644726578062,0.1708,2925.0,2924.4,0.0104124]
[1644726578667,0.95701525,2925.1,2924.4,0.0104124]
[1644726579067,0.95701525,2925.1,2924.2,0.00328969]
[1644726579270,0.0535972,2925.1,2924.4,0.0104125]
[1644726580267,0.0535972,2925.1,2924.2,3.04220273]
[1644726580467,0.0535972,2925.1,2924.4,1.07915296]
[1644726581519,0.0535972,2925.1,2924.4,1.06874046]
[1644726581720,0.0535972,2925.1,2924.4,1.07915296]
[1644726582522,0.0535972,2925.1,2924.4,0.0104125]
[1644726582722,0.0535972,2925.1,2924.2,0.17408969]
[1644726582922,0.2243972,2925.1,2924.4,0.0104125]
[1644726583926,0.2243972,2925.1,2924.2,1.07594396]
[1644726584125,0.2243972,2925.1,2924.4,0.0104125]
[1644726585201,0.2243972,2925.1,2924.2,1.07594396]
[1644726585393,0.2243972,2925.1,2924.4,0.0104125]
[1644726585594,0.20653147,2925.1,2924.4,0.0104125]
[1644726586401,0.20653147,2925.1,2924.2,4.12704935]
[1644726586597,0.03573147,2925.1,2924.4,0.0104125]
[1644726587497,0.03573147,2925.1,2924.3,1.0]
[1644726587698,0.03573147,2925.1,2924.4,0.0104125]
[1644726588717,0.03573147,2925.1,2924.2,4.32453365]
[1644726588920,0.03573147,2925.1,2924.4,0.0104125]
[1644726589919,0.03573147,2925.1,2924.2,0.17408969]
[1644726590120,0.03573147,2925.1,2924.4,0.0104125]
[1644726590319,0.0535972,2925.1,2924.4,0.0104125]
[1644726591018,0.0535972,2925.1,2924.2,0.17408969]
[1644726591433,0.0535972,2925.1,2924.4,0.0104125]
[1644726592267,0.0535972,2925.1,2924.2,0.17408969]
[1644726592668,0.0535972,2925.1,2924.4,0.0104125]
[1644726593470,0.0535972,2925.1,2924.2,0.17408969]
[1644726593870,0.0535972,2925.1,2924.4,0.0104125]
[1644726594269,1.45437074,2925.0,2924.4,0.0104125]
[1644726594671,1.45437074,2925.0,2924.2,0.00328969]
[1644726595071,1.45437074,2925.0,2924.4,0.0104124]
[1644726595918,1.45437074,2925.0,2924.2,0.00328969]
[1644726596119,1.62517074,2925.0,2924.4,0.0104124]
[1644726596318,1.45437074,2924.9,2924.4,0.0104124]
[1644726597120,1.45437074,2924.9,2924.2,0.00328969]
[1644726597323,1.45437074,2924.9,2924.4,0.0104123]
[1644726597324,0.1708,2924.8,2924.4,0.0104123]
[1644726597522,1.45437074,2924.7,2924.4,0.0104123]
[1644726598024,1.4533516,2924.6,2924.4,0.0104123]
[1644726598227,0.1708,2925.0,2924.4,0.0104123]
[1644726598426,0.1708,2925.0,2923.9,0.00328969]
[1644726598627,0.1708,2925.0,2924.4,0.01041198]
[1644726599567,0.1708,2925.0,2923.9,0.00328969]
[1644726599768,0.1708,2925.0,2924.4,0.0104124]
[1644726599975,0.1708,2925.0,2923.3,1.0]
[1644726599976,4.15,2924.3,2923.3,1.0]
[1644726600181,4.15,2924.3,2923.2,7.63997927]
[1644726600182,4.99857399,2923.6,2923.2,7.63997927]
[1644726600381,6.05817399,2923.6,2923.2,7.63997927]
[1644726600576,0.965,2923.5,2923.2,7.63997927]
[1644726600777,0.965,2923.5,2923.2,6.087669]
[1644726600975,1.84223703,2923.4,2923.2,6.0706333]
[1644726601174,0.171,2923.3,2923.2,6.0706333]
[1644726601378,0.171,2923.3,2922.6,0.25]
[1644726601379,0.665,2923.3,2922.6,0.25]
[1644726601576,0.665,2923.3,2922.1,5.8218247]
[1644726601577,3.5,2923.2,2922.1,5.8218247]
[1644726601774,0.171,2923.1,2922.1,5.8218247]
[1644726602575,3.994,2923.2,2922.0,1.4795]
[1644726602776,3.994,2923.2,2922.0,0.25]
[1644726604222,0.89554297,2922.4,2922.0,0.25]
[1644726604425,0.89554297,2922.4,2921.6,5.1509]
[1644726604630,0.89554297,2922.4,2922.0,0.04156403]
[1644726604826,3.5,2923.0,2922.0,0.04156403]
[1644726605229,3.86838721,2923.0,2922.0,0.04156403]
[1644726605629,3.86838721,2923.0,2921.6,3.16646]
[1644726605828,3.86838721,2923.0,2922.4,0.0042789]
[1644726606128,1.19452475,2922.9,2922.4,0.0042789]
[1644726606330,3.25272339,2922.8,2922.4,0.0042789]
[1644726606728,3.25272339,2922.8,2921.7,1.04035807]
[1644726606929,3.25272339,2922.8,2921.7,0.04035807]
[1644726607167,3.25272339,2922.8,2922.5,0.00427875]
[1644726607969,3.25272339,2922.8,2921.7,1.04035807]
[1644726608372,3.25272339,2922.8,2922.5,0.01039617]
[1644726608576,1.19452475,2922.9,2922.5,0.01039617]
[1644726609172,1.30927712,2922.7,2921.7,1.29035807]
[1644726609374,2.61855424,2922.7,2922.6,0.0103961]
[1644726610378,2.61855424,2922.7,2921.7,1.29035807]
[1644726610576,2.61855424,2922.7,2922.5,0.01039617]
[1644726611017,3.20251688,2922.6,2922.5,0.01039617]
[1644726611620,2.61855424,2922.7,2921.7,1.29035807]
[1644726611819,3.30189697,2922.6,2922.4,0.01039632]
[1644726612021,3.19357976,2922.6,2922.4,0.01039632]
[1644726612821,3.19357976,2922.6,2921.7,0.29035807]
[1644726613024,3.19357976,2922.6,2922.4,0.01039639]
[1644726614024,3.19357976,2922.6,2921.7,0.29035807]
[1644726614224,3.19357976,2922.6,2922.4,0.01039639]
[1644726614424,1.30927712,2922.5,2922.4,0.01039639]
[1644726614663,2.61855424,2922.5,2922.4,0.01039639]
[1644726615163,2.61855424,2922.5,2921.7,0.29035807]
[1644726615365,2.61855424,2922.5,2922.3,0.01039646]
[1644726616369,2.61855424,2922.5,2921.7,0.04363177]
[1644726616567,2.61855424,2922.5,2922.3,0.01039654]
[1644726617369,3.24754744,2922.4,2922.3,0.01039654]
[1644726617573,3.3628818,2922.4,2921.7,0.04363177]
[1644726617771,3.3628818,2922.4,2922.3,0.01039654]
[1644726618726,3.3628818,2922.4,2921.7,0.04363177]
[1644726619025,3.5339818,2922.4,2922.2,0.01039661]
[1644726619825,1.30927712,2922.3,2922.2,0.01039661]
[1644726620028,2.61855424,2922.3,2921.7,0.04363177]
[1644726620233,2.61855424,2922.3,2921.7,0.08522474]
[1644726620626,3.26675824,2922.2,2921.7,0.08522474]
[1644726620828,2.61855424,2922.3,2921.7,0.03522474]
[1644726621228,2.61855424,2922.3,2921.6,0.00327406]
[1644726621428,3.16634762,2922.2,2921.6,0.00327406]
[1644726622065,3.1870277,2922.2,2921.6,0.00327406]
[1644726623165,3.21195652,2922.2,2921.6,0.00327406]
[1644726623368,3.1640432,2922.2,2921.6,0.00327406]
[1644726623871,2.61855424,2922.3,2921.6,0.01367204]
[1644726624770,3.1551391,2922.2,2921.6,0.00327406]
[1644726624970,3.19660804,2922.2,2921.6,0.01367214]
[1644726625174,1.30927712,2921.9,2921.6,0.01367214]
[1644726626025,1.30927712,2921.9,2921.6,0.00327406]
[1644726626330,1.30927712,2921.9,2921.6,1.18576301]
[1644726626526,0.1711,2923.1,2921.9,4.15]
[1644726626731,0.01039194,2923.2,2922.0,4.13398617]
[1644726626927,0.01039194,2923.2,2922.1,5.50601439]
[1644726627124,0.01039194,2923.2,2923.0,1.04584559]
[1644726627323,5.31491615,2923.9,2923.0,1.76374559]
[1644726627324,1.15871615,2923.9,2923.0,1.76374559]
[1644726627524,1.15871615,2923.9,2923.0,0.7179]
[1644726627525,0.01039372,2923.2,2923.0,0.7179]
[1644726627726,0.01039372,2923.2,2923.1,0.171]
[1644726628128,0.01039372,2923.2,2923.0,0.171]
[1644726628328,1.15871615,2923.9,2923.0,0.171]
[1644726628527,1.15871615,2923.9,2922.9,0.171]
[1644726628731,0.01039448,2923.2,2922.9,0.171]
[1644726628930,0.01039448,2923.2,2922.8,0.3]
[1644726629591,0.171,2923.8,2922.5,1.3]
[1644726629798,0.01039456,2923.2,2922.5,1.3]
[1644726629997,0.01039456,2923.2,2922.5,2.27296554]
[1644726630801,0.171,2923.8,2922.6,3.21260751]
[1644726630997,0.01039424,2923.2,2922.6,3.21260751]
[1644726631198,0.01039424,2923.2,2922.7,1.0]
[1644726631398,0.01039424,2923.2,2922.7,1.3]
[1644726632100,0.171,2923.8,2922.7,1.3]
[1644726632400,0.01039445,2923.2,2922.7,1.3]
[1644726633315,0.171,2923.8,2922.7,1.3]
[1644726633521,0.01039445,2923.2,2922.8,0.171]
[1644726634525,0.171,2923.8,2922.8,0.171]
[1644726634723,0.01039456,2923.2,2922.8,0.171]
[1644726635732,0.171,2923.8,2922.8,0.171]
[1644726635927,0.01039456,2923.2,2922.8,0.171]
[1644726636529,0.01039456,2923.2,2922.8,0.17427194]
[1644726636929,0.171,2923.8,2922.8,0.17427194]
[1644726637169,0.01039456,2923.2,2922.8,0.17427194]
[1644726637970,0.171,2923.8,2922.8,0.17427194]
[1644726638376,0.171,2923.8,2922.8,3.24749497]
[1644726638377,0.01039456,2923.2,2922.8,3.24749497]
[1644726638574,0.01039456,2923.2,2922.8,0.17427194]
[1644726639174,0.171,2923.8,2922.8,0.17427194]
[1644726639577,2.60910431,2924.3,2922.8,0.17427194]
[1644726639578,0.01039456,2923.2,2922.8,4.76837194]
[1644726639780,0.01039456,2923.2,2922.9,6.66609129]
[1644726639976,0.01039456,2923.2,2923.0,0.171]
[1644726640178,0.01039456,2923.2,2923.1,0.494]
[1644726640383,3.114,2924.4,2923.1,1.66609129]
[1644726640587,3.114,2924.4,2923.4,1.09938074]
[1644726640588,1.45485179,2924.3,2923.4,1.09938074]
[1644726641037,1.45485179,2924.3,2923.4,1.57147203]
[1644726641231,1.45485179,2924.3,2923.4,1.87147203]
[1644726641430,1.45485179,2924.3,2923.4,1.77209129]
[1644726641835,1.45485179,2924.3,2923.4,3.83446049]
[1644726642036,0.01039338,2924.0,2923.4,3.83446049]
[1644726642236,0.01039338,2924.0,2923.5,1.0]
[1644726642840,4.2908192,2924.4,2923.5,1.0]
[1644726643036,0.01039353,2923.9,2923.5,1.0]
[1644726643837,0.01039353,2923.9,2923.4,3.23209579]
[1644726644038,0.171,2924.3,2923.4,3.83209579]
[1644726644240,3.114,2924.4,2923.5,1.0]
[1644726644441,0.0103936,2923.8,2923.6,3.84491864]
[1644726644672,0.0103936,2923.8,2923.6,4.46791864]
[1644726644872,0.0103936,2923.8,2923.7,4.15737298]
[1644726645072,0.0103936,2923.8,2923.7,4.45737298]
[1644726645476,0.01039353,2923.9,2923.7,4.45737298]
[1644726645671,0.01039353,2923.9,2923.8,3.15573322]
[1644726645876,0.01039353,2923.9,2923.8,4.15573322]
[1644726646476,4.6082,2924.9,2923.8,4.15573322]
[1644726646679,1.45477618,2924.8,2923.8,4.15573322]
[1644726647678,2.57317597,2924.8,2923.8,4.15573322]
[1644726647876,1.45477618,2924.7,2923.8,4.15573322]
[1644726649025,1.45336487,2924.7,2923.8,4.15573322]
[1644726649224,0.1708,2924.6,2923.8,4.15573322]
[1644726649426,4.4374,2924.9,2923.9,1.0]
[1644726649427,0.1708,2924.8,2923.9,1.0]
[1644726649626,4.47300316,2924.9,2924.0,3.10417304]
[1644726649828,4.47300316,2924.9,2924.1,1.0]
[1644726650026,3.32970316,2924.9,2924.1,1.0]
[1644726650328,0.01038571,2924.6,2924.1,1.0]
[1644726651332,3.32970316,2924.9,2924.1,1.0]
[1644726651528,0.01038586,2924.5,2924.1,1.0]
[1644726652372,3.32970316,2924.9,2924.1,1.0]
[1644726652580,3.32970316,2924.9,2924.2,1.08287139]
[1644726652776,0.01038593,2924.4,2924.2,1.08287139]
[1644726653579,0.03560316,2924.9,2924.2,1.08287139]
[1644726653985,0.01038593,2924.4,2924.2,1.08287139]
[1644726654786,4.1638,2925.2,2924.3,3.05948275]
[1644726655088,0.01038593,2924.4,2924.3,3.05948275]
[1644726655924,0.01038593,2924.4,2924.3,3.23157404]
[1644726656132,0.1708,2925.6,2924.6,0.85459]
[1644726656133,0.00388245,2925.3,2924.6,0.85459]
[1644726656328,0.1708,2925.6,2924.7,3.49912587]
[1644726656329,0.00388245,2925.5,2924.7,3.49912587]
[1644726656530,0.00388245,2925.5,2924.8,0.494]
[1644726656724,0.00388245,2925.5,2924.8,0.794]
[1644726656925,0.17468245,2925.8,2924.9,3.18081251]
[1644726657125,0.00388245,2925.8,2925.2,1.08246058]
[1644726657331,0.00388245,2926.1,2925.3,4.294]
[1644726657529,0.00388245,2926.2,2925.3,4.46609129]
[1644726657726,3.1183,2926.7,2925.3,4.46609129]
[1644726657727,0.00388245,2926.4,2925.3,4.46609129]
[1644726657926,0.00388245,2926.6,2925.4,0.17209129]
[1644726658726,0.01037665,2926.1,2925.4,0.17209129]
[1644726658926,0.01037665,2926.1,2925.5,0.1708]
[1644726659130,0.01037665,2926.1,2925.4,0.1708]
[1644726659324,0.01037665,2926.1,2925.3,0.794]
[1644726659568,0.02694292,2925.5,2925.3,0.794]
[1644726659971,0.02694292,2925.5,2925.4,0.1708]
[1644726660173,0.02694292,2925.5,2925.4,0.9235]
[1644726662266,0.02694292,2925.5,2925.4,4.05651232]
[1644726662467,0.02694292,2925.5,2925.4,4.05666892]
[1644726664723,0.03592389,2925.5,2925.4,0.7527]
[1644726665326,0.03592389,2925.5,2925.4,3.89327147]
[1644726668290,0.03592389,2925.5,2925.4,4.06407147]
[1644726669095,0.01037825,2925.6,2925.4,4.06407147]
[1644726669294,0.00388245,2926.6,2925.5,3.47188995]
[1644726669498,0.04150185,2926.4,2925.7,0.85427]
[1644726669694,0.0453843,2926.4,2925.7,1.15427]
[1644726669895,0.04150185,2926.4,2925.7,1.45427]
[1644726670494,0.00388245,2926.6,2925.7,1.45427]
[1644726670696,0.01037737,2926.2,2925.7,1.45427]
[1644726671730,0.00388245,2926.6,2925.7,1.45427]
[1644726671926,0.01037752,2926.1,2925.7,1.45427]
[1644726672929,0.00388245,2926.6,2925.7,1.45427]
[1644726673127,0.01037759,2926.0,2925.7,1.45427]
[1644726674131,0.00388245,2926.6,2925.7,1.45331808]
[1644726674331,0.01037766,2926.0,2925.8,3.17693578]
[1644726674577,0.01037766,2926.0,2925.7,1.45331808]
[1644726674984,0.01037766,2926.0,2925.9,0.02408115]
[1644726675181,0.04150443,2926.4,2925.9,0.02408115]
[1644726675382,0.00388245,2926.6,2925.9,0.02408115]
[1644726675684,0.01037752,2926.1,2925.9,0.02408115]
[1644726676482,0.00388245,2926.6,2925.9,0.02408115]
[1644726676683,0.01037745,2926.1,2925.9,0.02408115]
[1644726677683,0.00388245,2926.6,2925.9,0.02408115]
[1644726677885,0.01037745,2926.1,2925.9,0.02408115]
[1644726678925,0.00388245,2926.6,2925.9,0.02408115]
[1644726679125,0.01037745,2926.1,2925.9,0.02408115]
[1644726680132,0.00388245,2926.7,2925.9,0.02408115]
[1644726680332,0.01037745,2926.1,2925.9,0.19488115]
[1644726680533,0.01037745,2926.1,2926.0,0.17209129]
[1644726680738,0.01037745,2926.1,2926.0,4.57557445]
[1644726681230,0.00388245,2926.8,2926.0,4.57557445]
[1644726681430,0.01037737,2926.2,2926.1,0.3]
[1644726681632,0.01037737,2926.2,2926.1,3.99429743]
[1644726682487,0.00388245,2926.8,2926.1,3.99429743]
[1644726682684,0.01037723,2926.3,2926.1,3.99429743]
[1644726682886,0.01037723,2926.3,2926.2,3.09613339]
[1644726683085,0.01037723,2926.3,2926.2,3.39613339]
[1644726683688,0.00388245,2926.8,2926.2,3.39613339]
[1644726683889,0.01037708,2926.4,2926.2,3.39613339]
[1644726684490,0.01037708,2926.4,2926.2,0.3]
[1644726684690,0.01037708,2926.4,2926.1,1.094]
[1644726684890,0.00388245,2926.8,2926.2,0.02407929]
[1644726685096,0.00612026,2926.4,2926.2,0.02407929]
[1644726686123,0.00388245,2926.8,2926.2,0.02407929]
[1644726686322,0.00612026,2926.4,2926.2,0.02407929]
[1644726687230,0.00388245,2926.8,2926.1,0.55184143]
[1644726687427,0.01038242,2926.4,2926.1,0.55184143]
[1644726688431,0.00388245,2926.8,2926.1,0.55184143]
[1644726688631,0.01038249,2926.4,2926.1,0.55184143]
[1644726689233,0.01038249,2926.4,2926.1,0.3]
[1644726689673,0.00388245,2926.8,2926.1,0.3]
[1644726689874,0.01038249,2926.4,2926.3,0.02407835]
[1644726690876,0.00388245,2927.1,2926.3,0.02407835]
[1644726691074,0.01038234,2926.5,2926.3,0.02407835]
[1644726692078,0.00388245,2927.2,2926.3,0.02407835]
[1644726692280,0.01038227,2926.5,2926.3,0.02407835]
[1644726694431,0.17468245,2927.2,2926.3,0.02407835]
[1644726694631,0.00611486,2926.5,2926.3,0.02407835]
[1644726695229,0.00611486,2926.5,2926.0,0.17209129]
[1644726695631,0.00388245,2927.1,2925.9,0.17209129]
[1644726695832,1.45381652,2927.0,2925.9,0.17209129]
[1644726696034,0.01037708,2926.4,2925.9,0.17209129]
[1644726696831,0.00388245,2927.1,2925.9,0.17209129]
[1644726697072,0.01037723,2926.3,2925.9,0.17209129]
[1644726698080,2.54719168,2927.1,2925.9,0.47209129]
[1644726698277,0.0103773,2926.2,2925.9,0.47209129]
[1644726698778,0.0103773,2926.2,2925.9,0.77209129]
[1644726699278,0.17468245,2926.9,2925.9,0.77209129]
[1644726699479,0.01037737,2926.2,2925.9,0.77209129]
[1644726699878,0.01037737,2926.2,2925.9,1.77209129]
[1644726700478,0.02696291,2926.4,2925.9,1.77209129]
[1644726700684,0.01037737,2926.2,2925.9,1.77209129]
[1644726701727,0.02696291,2926.4,2925.9,1.77209129]
[1644726701928,0.01037737,2926.2,2925.9,1.77209129]